fUSD/lending_fUSD_20250519
["ID","MTS","AMOUNT","RATE_DAILY","PERIOD"]
[361618660,1747643458747,-150.0,0.00013808,2]
[361618661,1747643458756,-499.24,0.00013808,2]
[361618662,1747643458765,-157.42309297,0.00013808,2]
[361618663,1747643458774,-340.0,0.00013808,2]
[361618664,1747643458783,-420.0,0.00013808,2]
[361618665,1747643458793,-7659.11,0.00013808,2]
[361618666,1747643458803,-986.82,0.00013808,2]
[361618667,1747643458813,-155.56333951,0.00013808,2]
[361618668,1747643458823,-741.88,0.00013808,2]
[361618669,1747643458833,-380.0,0.00013808,2]
[361618670,1747643458842,-340.0,0.00013808,2]
[361618671,1747643458852,-420.0,0.00013808,2]
[361618672,1747643458863,-461.29,0.00013808,2]
[361618673,1747643458872,-4602.74,0.00013808,2]
[361618674,1747643458883,-420.0,0.00013808,2]
[361618675,1747643458893,-480.39,0.00013808,2]
[361618676,1747643458902,-420.0,0.00013808,2]
[361618677,1747643458912,-961.68,0.00013808,2]
[361618678,1747643458921,-531.51,0.00013808,2]
[361618679,1747643458930,-1069.87,0.00013808,2]
[361618680,1747643458940,-400.0,0.00013808,2]
[361618681,1747643458950,-1087.56,0.00013808,2]
[361618682,1747643458959,-420.0,0.00013808,2]
[361618683,1747643458969,-8026.15,0.00013808,2]
[361618684,1747643458978,-853.28,0.00013808,2]
[361618685,1747643458987,-482.28020302,0.00013817,2]
[361618686,1747643458996,-7585.32488464,0.00013833,2]
[361618687,1747643459005,-286.47774417,0.00013833,2]
[361618688,1747643459014,-500.0,0.00013835,2]
[361618689,1747643459024,-500.0,0.00013835,2]
[361618690,1747643459033,-153.99068401,0.00013835,2]
[361618691,1747643459043,-500.0,0.00013835,2]
[361618692,1747643459052,-150.0,0.00013835,2]
[361618693,1747643459062,-502.52626752,0.00013835,2]
[361618694,1747643459071,-150.0,0.00013835,2]
[361618695,1747643459080,-150.0,0.00013835,2]
[361618696,1747643459089,-150.0,0.00013835,2]
[361618697,1747643459098,-500.0,0.00013835,2]
[361618698,1747643459109,-161.2205244,0.00013835,2]
[361618699,1747643459118,-159.73477701,0.0001384,2]
[361618700,1747643459127,-1459.0,0.00013848,2]
[361618701,1747643459136,-554.0,0.00013848,2]
[361618702,1747643459146,-585.0,0.00013848,2]
[361618703,1747643459155,-1256.0,0.00013848,2]
[361618704,1747643459165,-920.0,0.00013848,2]
[361618705,1747643459174,-1149.0,0.00013848,2]
[361618706,1747643459183,-5943.0,0.00013848,2]
[361618707,1747643459193,-6830.0,0.00013848,2]
[361618708,1747643459202,-1308.0,0.00013848,2]
[361618709,1747643459212,-154.0,0.00013848,2]
[361618710,1747643459221,-934.0,0.00013848,2]
[361618711,1747643459230,-4043.0,0.00013848,2]
[361618712,1747643459240,-151.0,0.00013848,2]
[361618713,1747643459249,-151.0,0.00013848,2]
[361618714,1747643459258,-151.0,0.00013848,2]
[361618715,1747643459268,-284.586536,0.00013848,2]
[361618716,1747643459278,-284.586536,0.00013848,2]
[361618717,1747643459287,-151.0,0.00013848,2]
[361618718,1747643459296,-151.0,0.00013848,2]
[361618719,1747643459305,-151.742381,0.00013848,2]
[361618720,1747643459315,-151.0,0.00013848,2]
[361618721,1747643459324,-151.0,0.00013848,2]
[361618722,1747643459334,-151.0,0.00013848,2]
[361618723,1747643459343,-151.0,0.00013848,2]
[361618724,1747643459353,-151.0,0.00013848,2]
[361618725,1747643459364,-175.6823596,0.00013863,2]
[361618726,1747643459374,-284.91528428,0.00013863,2]
[361618727,1747643459383,-246.57519822,0.00013863,2]
[361618728,1747643459392,-200.0,0.00013863,2]
[361618729,1747643459402,-204.51849331,0.00013863,2]
[361618730,1747643459411,-245.44501458,0.00013863,2]
[361618731,1747643459421,-150.0,0.00013863,2]
[361618732,1747643459431,-500.0,0.00013863,2]
[361618733,1747643459440,-462.85420837,0.00013866,2]
[361618734,1747643459450,-500.0,0.00013866,2]
[361618735,1747643459459,-7585.32488464,0.00013866,2]
[361618736,1747643459473,-286.47774417,0.00013866,2]
[361618737,1747643459482,-151.0,0.00013867,2]
[361618738,1747643459491,-166.275075,0.00013867,2]
[361618739,1747643459500,-166.275075,0.00013867,2]
[361618740,1747643459508,-151.0,0.00013867,2]
[361618741,1747643459518,-155.291534,0.00013867,2]
[361618742,1747643459527,-155.291534,0.00013867,2]
[361618743,1747643459537,-164.167565,0.00013867,2]
[361618744,1747643459546,-164.167565,0.00013867,2]
[361618745,1747643459556,-151.0,0.00013867,2]
[361618746,1747643459565,-151.0,0.00013867,2]
[361618747,1747643459574,-151.0,0.00013867,2]
[361618748,1747643459584,-2036.298657,0.00013867,2]
[361618749,1747643459593,-2036.298657,0.00013867,2]
[361618750,1747643459603,-151.0,0.00013867,2]
[361618751,1747643459618,-1682.41556333,0.0001387,2]
[361618752,1747643459627,-160.50013963,0.00013873,2]
[361618753,1747643459637,-500.0,0.00013873,2]
[361618754,1747643459646,-500.0,0.00013873,2]
[361618755,1747643459656,-500.0,0.00013873,2]
[361618756,1747643459666,-500.80248992,0.00013873,2]
[361618757,1747643459675,-505.49284489,0.00013873,2]
[361618758,1747643459686,-500.0,0.00013873,2]
[361618759,1747643459698,-500.0,0.00013873,2]
[361618760,1747643459708,-223.38206727,0.0001389,2]
[361618761,1747643459718,-500.0,0.0001389,2]
[361618762,1747643459728,-522.0,0.0001389,2]
[361618763,1747643459737,-10987.0,0.0001389,2]
[361618764,1747643459746,-436.0,0.0001389,2]
[361618765,1747643459756,-38627.0,0.0001389,2]
[361618766,1747643459766,-151.0,0.00013891,2]
[361618767,1747643459775,-151.0,0.00013891,2]
[361618768,1747643459785,-151.0,0.00013891,2]
[361618769,1747643459795,-540.516809,0.00013891,2]
[361618770,1747643459805,-540.516809,0.00013891,2]
[361618771,1747643459816,-12500.0,0.00013891,2]
[361618772,1747643459826,-500.0,0.00013899,2]
[361618773,1747643459836,-3285.48743379,0.000139,2]
[361618774,1747643459846,-151.0,0.000139,2]
[361618775,1747643459857,-5800.0,0.000139,2]
[361618776,1747643459867,-151.0,0.000139,2]
[361618777,1747643459876,-151.0,0.000139,2]
[361618778,1747643459887,-661.062516,0.000139,2]
[361618779,1747643459896,-661.062516,0.000139,2]
[361618780,1747643459906,-286.42876,0.000139,2]
[361618781,1747643459916,-151.0,0.000139,2]
[361618782,1747643459925,-155.707883,0.000139,2]
[361618783,1747643459935,-267.57008339,0.000139,2]
[361618784,1747643459944,-150.0,0.000139,2]
[361618785,1747643459954,-150.0,0.000139,2]
[361618786,1747643459963,-150.0,0.000139,2]
[361618787,1747643459973,-150.0,0.000139,2]
[361618788,1747643459982,-15588.19337485,0.000139,2]
[361618789,1747643459992,-750.29008671,0.000139,2]
[361618790,1747643460001,-7472.66896363,0.000139,2]
[361618791,1747643460011,-54945.07030311,0.000139,2]
[361618792,1747643460020,-12500.0,0.000139,2]
[361618793,1747643460029,-151.0,0.000139,2]
[361618794,1747643460040,-151.0,0.000139,2]
[361618795,1747643460050,-151.0,0.000139,2]
[361618796,1747643460060,-150.0,0.000139,2]
[361618797,1747643460070,-151.0,0.000139,2]
[361618798,1747643460080,-11003.57131572,0.000139,2]
[361618799,1747643460089,-418.879678,0.000139,2]
[361618800,1747643460099,-418.879678,0.000139,2]
[361618801,1747643460109,-238.702347,0.000139,2]
[361618802,1747643460118,-238.702347,0.000139,2]
[361618803,1747643460128,-184.036428,0.000139,2]
[361618804,1747643460138,-184.036428,0.000139,2]
[361618805,1747643460147,-151.0,0.000139,2]
[361618806,1747643460157,-184.928132,0.000139,2]
[361618807,1747643460166,-151.0,0.000139,2]
[361618808,1747643460176,-4020.84155285,0.000139,2]
[361618809,1747643460188,-7585.32488464,0.000139,2]
[361618810,1747643460198,-1087.53717324,0.000139,2]
[361618811,1747643460207,-286.47774417,0.000139,2]
[361618812,1747643460216,-168.0053687,0.000139,2]
[361618813,1747643460226,-765.23886624,0.000139,2]
[361618814,1747643460236,-2573.24549508,0.000139,2]
[361618815,1747643460245,-159.73477701,0.000139,2]
[361618816,1747643460255,-250.0,0.00013914,2]
[361618817,1747643460264,-380.47,0.00013916,2]
[361618818,1747643460274,-500.0,0.00013916,2]
[361618819,1747643460283,-500.0,0.00013916,2]
[361618820,1747643460293,-500.0,0.00013916,2]
[361618821,1747643460303,-151.0,0.00013917,2]
[361618822,1747643460312,-151.0,0.00013917,2]
[361618823,1747643460321,-151.0,0.00013917,2]
[361618824,1747643460330,-185.968597,0.00013917,2]
[361618825,1747643460339,-151.0,0.00013917,2]
[361618826,1747643460349,-151.0,0.00013917,2]
[361618827,1747643460359,-151.0,0.00013917,2]
[361618828,1747643460369,-757.493907,0.00013917,2]
[361618829,1747643460379,-757.493907,0.00013917,2]
[361618830,1747643460388,-757.493907,0.00013917,2]
[361618831,1747643460398,-757.493907,0.00013917,2]
[361618832,1747643460407,-757.493907,0.00013917,2]
[361618833,1747643460416,-757.493907,0.00013917,2]
[361618834,1747643460426,-151.0,0.00013917,2]
[361618835,1747643460436,-151.0,0.00013917,2]
[361618836,1747643460445,-151.0,0.00013917,2]
[361618837,1747643460454,-151.0,0.00013917,2]
[361618838,1747643460463,-661.062516,0.00013917,2]
[361618839,1747643460473,-661.062516,0.00013917,2]
[361618840,1747643460483,-661.062516,0.00013917,2]
[361618841,1747643460493,-661.062516,0.00013917,2]
[361618842,1747643460502,-151.0,0.00013917,2]
[361618843,1747643460512,-151.0,0.00013917,2]
[361618844,1747643460522,-151.0,0.00013917,2]
[361618845,1747643460532,-155.644124,0.00013917,2]
[361618846,1747643460541,-151.0,0.00013917,2]
[361618847,1747643460551,-151.0,0.00013917,2]
[361618848,1747643460560,-151.0,0.00013917,2]
[361618849,1747643460570,-151.0,0.00013917,2]
[361618850,1747643460580,-151.0,0.00013917,2]
[361618851,1747643460589,-151.0,0.00013917,2]
[361618852,1747643460600,-151.0,0.00013917,2]
[361618853,1747643460612,-151.0,0.00013917,2]
[361618854,1747643460626,-174.331728,0.00013917,2]
[361618855,1747643460635,-152.4486,0.00013917,2]
[361618856,1747643460644,-151.0,0.00013917,2]
[361618857,1747643460654,-151.0,0.00013917,2]
[361618858,1747643460664,-280.0,0.00013917,2]
[361618859,1747643460674,-481.93168037,0.00013917,2]
[361618860,1747643460684,-420.0,0.00013917,2]
[361618861,1747643460694,-151.0,0.00013917,2]
[361618862,1747643460704,-420.0,0.00013917,2]
[361618863,1747643460713,-420.0,0.00013917,2]
[361618864,1747643460723,-151.0,0.00013917,2]
[361618865,1747643460732,-420.0,0.00013917,2]
[361618866,1747643460741,-151.0,0.00013917,2]
[361618867,1747643460750,-243.330771,0.00013917,2]
[361618868,1747643460760,-420.0,0.00013917,2]
[361618869,1747643460769,-420.0,0.00013917,2]
[361618870,1747643460779,-420.0,0.00013917,2]
[361618871,1747643460788,-151.0,0.00013917,2]
[361618872,1747643460797,-420.0,0.00013917,2]
[361618873,1747643460807,-472.28,0.00013917,2]
[361618874,1747643460817,-420.0,0.00013917,2]
[361618875,1747643460827,-420.0,0.00013917,2]
[361618876,1747643460836,-420.0,0.00013917,2]
[361618877,1747643460844,-420.0,0.00013917,2]
[361618878,1747643460853,-486.45994257,0.00013917,2]
[361618879,1747643460864,-420.0,0.00013917,2]
[361618880,1747643460874,-420.0,0.00013917,2]
[361618881,1747643460883,-420.0,0.00013917,2]
[361618882,1747643460893,-621.99,0.00013917,2]
[361618883,1747643460903,-420.0,0.00013917,2]
[361618884,1747643460913,-420.0,0.00013917,2]
[361618885,1747643460922,-473.09,0.00013917,2]
[361618886,1747643460932,-420.0,0.00013917,2]
[361618887,1747643460942,-366.24578752,0.00013917,2]
[361618888,1747643460951,-420.0,0.00013917,2]
[361618889,1747643460960,-736.77,0.00013917,2]
[361618890,1747643460970,-420.0,0.00013917,2]
[361618891,1747643460980,-420.0,0.00013917,2]
[361618892,1747643460990,-420.0,0.00013917,2]
[361618893,1747643460999,-420.0,0.00013917,2]
[361618894,1747643461009,-584.17,0.00013917,2]
[361618895,1747643461019,-420.0,0.00013917,2]
[361618896,1747643461028,-420.0,0.00013917,2]
[361618897,1747643461037,-420.0,0.00013917,2]
[361618898,1747643461047,-420.0,0.00013917,2]
[361618899,1747643461056,-420.0,0.00013917,2]
[361618900,1747643461065,-420.0,0.00013917,2]
[361618901,1747643461074,-420.0,0.00013917,2]
[361618902,1747643461084,-420.0,0.00013917,2]
[361618903,1747643461093,-420.0,0.00013917,2]
[361618904,1747643461103,-295.60920284,0.00013917,2]
[361618905,1747643461113,-420.0,0.00013917,2]
[361618906,1747643461123,-151.0,0.00013917,2]
[361618907,1747643461132,-151.0,0.00013917,2]
[361618908,1747643461142,-420.0,0.00013917,2]
[361618909,1747643461151,-151.0,0.00013917,2]
[361618910,1747643461161,-151.0,0.00013917,2]
[361618911,1747643461170,-151.0,0.00013917,2]
[361618912,1747643461180,-151.0,0.00013917,2]
[361618913,1747643461189,-420.0,0.00013917,2]
[361618914,1747643461199,-420.0,0.00013917,2]
[361618915,1747643461208,-151.0,0.00013917,2]
[361618916,1747643461218,-185.707296,0.00013917,2]
[361618917,1747643461228,-420.0,0.00013917,2]
[361618918,1747643461238,-420.0,0.00013917,2]
[361618919,1747643461247,-420.0,0.00013917,2]
[361618920,1747643461257,-189.300178,0.00013917,2]
[361618921,1747643461266,-189.300178,0.00013917,2]
[361618922,1747643461275,-420.0,0.00013917,2]
[361618923,1747643461285,-420.0,0.00013917,2]
[361618924,1747643461295,-189.300178,0.00013917,2]
[361618925,1747643461304,-189.300178,0.00013917,2]
[361618926,1747643461313,-605.17,0.00013917,2]
[361618927,1747643461323,-420.0,0.00013917,2]
[361618928,1747643461332,-420.0,0.00013917,2]
[361618929,1747643461342,-151.0,0.00013917,2]
[361618930,1747643461352,-151.0,0.00013917,2]
[361618931,1747643461362,-420.0,0.00013917,2]
[361618932,1747643461371,-450.18942613,0.00013917,2]
[361618933,1747643461381,-420.0,0.00013917,2]
[361618934,1747643461390,-420.0,0.00013917,2]
[361618935,1747643461401,-420.0,0.00013917,2]
[361618936,1747643461411,-420.0,0.00013917,2]
[361618937,1747643461420,-420.0,0.00013917,2]
[361618938,1747643461432,-179.28129172,0.00013917,2]
[361618939,1747643461442,-151.0,0.00013917,2]
[361618940,1747643461452,-151.0,0.00013917,2]
[361618941,1747643461462,-420.0,0.00013917,2]
[361618942,1747643461471,-780.64,0.00013917,2]
[361618943,1747643461481,-477.97,0.00013917,2]
[361618944,1747643461490,-420.0,0.00013917,2]
[361618945,1747643461500,-420.0,0.00013917,2]
[361618946,1747643461509,-575.25,0.00013917,2]
[361618947,1747643461518,-420.0,0.00013917,2]
[361618948,1747643461528,-420.0,0.00013917,2]
[361618949,1747643461536,-151.0,0.00013917,2]
[361618950,1747643461546,-151.0,0.00013917,2]
[361618951,1747643461554,-696.65,0.00013917,2]
[361618952,1747643461563,-151.0,0.00013917,2]
[361618953,1747643461572,-420.0,0.00013917,2]
[361618954,1747643461581,-420.0,0.00013917,2]
[361618955,1747643461590,-420.0,0.00013917,2]
[361618956,1747643461599,-420.0,0.00013917,2]
[361618957,1747643461609,-376.80998373,0.00013917,2]
[361618958,1747643461622,-420.0,0.00013917,2]
[361618959,1747643461631,-217.38645126,0.00013917,2]
[361618960,1747643461641,-420.0,0.00013917,2]
[361618961,1747643461650,-420.0,0.00013917,2]
[361618962,1747643461661,-509.81,0.00013917,2]
[361618963,1747643461670,-706.23,0.00013917,2]
[361618964,1747643461679,-420.0,0.00013917,2]
[361618965,1747643461691,-470.67,0.00013917,2]
[361618966,1747643461702,-285.95380563,0.00013917,2]
[361618967,1747643461711,-507.32,0.00013917,2]
[361618968,1747643461721,-567.98,0.00013917,2]
[361618969,1747643461731,-420.0,0.00013917,2]
[361618970,1747643461740,-151.0,0.00013917,2]
[361618971,1747643461750,-151.0,0.00013917,2]
[361618972,1747643461759,-420.0,0.00013917,2]
[361618973,1747643461769,-420.0,0.00013917,2]
[361618974,1747643461778,-420.0,0.00013917,2]
[361618975,1747643461789,-420.0,0.00013917,2]
[361618976,1747643461800,-420.0,0.00013917,2]
[361618977,1747643461810,-420.0,0.00013917,2]
[361618978,1747643461820,-1260.42,0.00013917,2]
[361618979,1747643461830,-728.29,0.00013917,2]
[361618980,1747643461839,-151.0,0.00013917,2]
[361618981,1747643461849,-151.0,0.00013917,2]
[361618982,1747643461859,-626.94,0.00013917,2]
[361618983,1747643461869,-420.0,0.00013917,2]
[361618984,1747643461879,-420.0,0.00013917,2]
[361618985,1747643461889,-420.0,0.00013917,2]
[361618986,1747643461898,-471.72,0.00013917,2]
[361618987,1747643461908,-582.2,0.00013917,2]
[361618988,1747643461919,-526.73,0.00013917,2]
[361618989,1747643461930,-151.0,0.00013917,2]
[361618990,1747643461940,-151.0,0.00013917,2]
[361618991,1747643461949,-420.0,0.00013917,2]
[361618992,1747643461959,-420.0,0.00013917,2]
[361618993,1747643461969,-540.14405793,0.00013917,2]
[361618994,1747643461979,-579.93,0.00013917,2]
[361618995,1747643461989,-543.49,0.00013917,2]
[361618996,1747643461999,-420.0,0.00013917,2]
[361618997,1747643462009,-676.39,0.00013917,2]
[361618998,1747643462020,-420.0,0.00013917,2]
[361618999,1747643462030,-300.0,0.00013917,2]
[361619000,1747643462041,-420.0,0.00013917,2]
[361619001,1747643462051,-420.0,0.00013917,2]
[361619002,1747643462060,-420.0,0.00013917,2]
[361619003,1747643462070,-420.0,0.00013917,2]
[361619004,1747643462080,-715.2,0.00013917,2]
[361619005,1747643462094,-420.0,0.00013917,2]
[361619006,1747643462104,-420.0,0.00013917,2]
[361619007,1747643462114,-164.82354284,0.00013917,2]
[361619008,1747643462124,-643.95,0.00013917,2]
[361619009,1747643462133,-420.0,0.00013917,2]
[361619010,1747643462143,-284.586536,0.00013917,2]
[361619011,1747643462153,-284.586536,0.00013917,2]
[361619012,1747643462162,-426.5,0.00013917,2]
[361619013,1747643462172,-418.879678,0.00013917,2]
[361619014,1747643462182,-596.42,0.00013917,2]
[361619015,1747643462191,-418.879678,0.00013917,2]
[361619016,1747643462201,-676.22,0.00013917,2]
[361619017,1747643462211,-284.586536,0.00013917,2]
[361619018,1747643462221,-284.586536,0.00013917,2]
[361619019,1747643462230,-418.879678,0.00013917,2]
[361619020,1747643462239,-418.879678,0.00013917,2]
[361619021,1747643462248,-1119.7,0.00013917,2]
[361619022,1747643462258,-740.82,0.00013917,2]
[361619023,1747643462268,-441.48,0.00013917,2]
[361619024,1747643462278,-420.0,0.00013917,2]
[361619025,1747643462288,-448.37,0.00013917,2]
[361619026,1747643462297,-459.85,0.00013917,2]
[361619027,1747643462307,-919.67,0.00013917,2]
[361619028,1747643462317,-501.65,0.00013917,2]
[361619029,1747643462329,-420.0,0.00013917,2]
[361619030,1747643462339,-420.0,0.00013917,2]
[361619031,1747643462350,-420.0,0.00013917,2]
[361619032,1747643462362,-521.57,0.00013917,2]
[361619033,1747643462372,-954.78,0.00013917,2]
[361619034,1747643462381,-442.52,0.00013917,2]
[361619035,1747643462392,-420.0,0.00013917,2]
[361619036,1747643462402,-436.4,0.00013917,2]
[361619037,1747643462412,-1968.24,0.00013917,2]
[361619038,1747643462422,-420.0,0.00013917,2]
[361619039,1747643462432,-288.42842385,0.00013917,2]
[361619040,1747643462445,-428.04,0.00013917,2]
[361619041,1747643462455,-521.1,0.00013917,2]
[361619042,1747643462465,-2042.259457,0.00013917,2]
[361619043,1747643462604,-420.0,0.00013917,2]
[361619044,1747643462626,-1147.18,0.00013917,2]
[361619045,1747643462636,-715.34,0.00013917,2]
[361619046,1747643462646,-557.35,0.00013917,2]
[361619047,1747643462656,-775.39,0.00013917,2]
[361619048,1747643462666,-420.0,0.00013917,2]
[361619049,1747643462676,-707.39,0.00013917,2]
[361619050,1747643462686,-518.19,0.00013917,2]
[361619051,1747643462699,-1033.02,0.00013917,2]
[361619052,1747643462709,-420.0,0.00013917,2]
[361619053,1747643462719,-420.0,0.00013917,2]
[361619054,1747643462729,-420.0,0.00013917,2]
[361619055,1747643462739,-551.08,0.00013917,2]
[361619056,1747643462748,-420.0,0.00013917,2]
[361619057,1747643462758,-238.702347,0.00013917,2]
[361619058,1747643462767,-1093.62,0.00013917,2]
[361619059,1747643462776,-238.702347,0.00013917,2]
[361619060,1747643462786,-420.0,0.00013917,2]
[361619061,1747643462795,-420.0,0.00013917,2]
[361619062,1747643462805,-476.26,0.00013917,2]
[361619063,1747643462815,-668.23,0.00013917,2]
[361619064,1747643462824,-238.702347,0.00013917,2]
[361619065,1747643462834,-238.702347,0.00013917,2]
[361619066,1747643462843,-300.0,0.00013917,2]
[361619067,1747643462853,-743.15,0.00013917,2]
[361619068,1747643462863,-420.0,0.00013917,2]
[361619069,1747643462873,-420.0,0.00013917,2]
[361619070,1747643462883,-1450.62,0.00013917,2]
[361619071,1747643462892,-420.0,0.00013917,2]
[361619072,1747643462902,-1086.3,0.00013917,2]
[361619073,1747643462911,-1306.12,0.00013917,2]
[361619074,1747643462921,-5276.951293,0.00013917,2]
[361619075,1747643462931,-554.52,0.00013917,2]
[361619076,1747643462941,-204.67508506,0.00013917,2]
[361619077,1747643462950,-420.0,0.00013917,2]
[361619078,1747643462960,-533.0,0.00013917,2]
[361619079,1747643462970,-1473.773868,0.00013917,2]
[361619080,1747643462979,-420.0,0.00013917,2]
[361619081,1747643462989,-943.98,0.00013917,2]
[361619082,1747643462999,-702.75,0.00013917,2]
[361619083,1747643463009,-420.0,0.00013917,2]
[361619084,1747643463018,-671.49,0.00013917,2]
[361619085,1747643463028,-700.21,0.00013917,2]
[361619086,1747643463038,-420.0,0.00013917,2]
[361619087,1747643463048,-1361.03,0.00013917,2]
[361619088,1747643463058,-825.94,0.00013917,2]
[361619089,1747643463068,-1084.7,0.00013917,2]
[361619090,1747643463078,-487.84,0.00013917,2]
[361619091,1747643463088,-1133.99,0.00013917,2]
[361619092,1747643463098,-420.0,0.00013917,2]
[361619093,1747643463108,-420.0,0.00013917,2]
[361619094,1747643463119,-430.59,0.00013917,2]
[361619095,1747643463129,-420.0,0.00013917,2]
[361619096,1747643463139,-151.0,0.00013917,2]
[361619097,1747643463150,-420.0,0.00013917,2]
[361619098,1747643463160,-159.419736,0.00013917,2]
[361619099,1747643463169,-387.91409517,0.00013917,2]
[361619100,1747643463179,-719.69,0.00013917,2]
[361619101,1747643463189,-151.0,0.00013917,2]
[361619102,1747643463198,-151.0,0.00013917,2]
[361619103,1747643463209,-471.07,0.00013917,2]
[361619104,1747643463218,-498.44,0.00013917,2]
[361619105,1747643463228,-420.0,0.00013917,2]
[361619106,1747643463237,-588.52,0.00013917,2]
[361619107,1747643463247,-151.0,0.00013917,2]
[361619108,1747643463257,-151.0,0.00013917,2]
[361619109,1747643463267,-616.89,0.00013917,2]
[361619110,1747643463277,-2075.62540407,0.00013917,2]
[361619111,1747643463322,-45.56459593,0.00013917,2]
[361619112,1747643463332,-420.0,0.00013917,2]
[361619113,1747643463342,-601.40276587,0.00013917,2]
[361619114,1747643463355,-108.15723413,0.00013917,2]
[361619115,1747643463365,-373.30276587,0.00013917,2]
[361619116,1747643463394,-1158.37,0.00013178,2]
[361619117,1747643463405,-152.29723413,0.00013917,2]
[361619118,1747643463415,-580.43,0.00013917,2]
[361619119,1747643463425,-282.95006587,0.00013917,2]
[361619120,1747643463493,-57.04993413,0.00013917,2]
[361619121,1747643463502,-45.39619042,0.00013917,2]
[361619122,1747643463514,-374.60380958,0.00013917,2]
[361619123,1747643463524,-420.0,0.00013917,2]
[361619124,1747643463533,-543.01173442,0.00013917,2]
[361619125,1747643463563,-453.11,0.00013178,2]
[361619126,1747643463572,-866.70826558,0.00013917,2]
[361619127,1747643463582,-420.0,0.00013917,2]
[361619128,1747643463592,-224.82233624,0.00013917,2]
[361619129,1747643464715,-400.0,0.00013698,2]
[361619131,1747643464725,-420.0,0.00013698,2]
[361619132,1747643464735,-5.30720289,0.00013698,2]
[361619133,1747643464747,-414.69279711,0.00013698,2]
[361619134,1747643464757,-420.0,0.00013698,2]
[361619135,1747643464768,-268.3,0.00013808,2]
[361619136,1747643464778,-420.0,0.00013808,2]
[361619137,1747643464789,-246.30766376,0.00013917,2]
[361619138,1747643464799,-151.0,0.00013917,2]
[361619139,1747643464809,-120.02692419,0.00013917,2]
[361619140,1747643464829,-547.66307581,0.00013917,2]
[361619141,1747643464839,-168.57367626,0.00013917,2]
[361619142,1747643464852,-285.72632374,0.00013917,2]
[361619143,1747643464862,-89.88435626,0.00013917,2]
[361619144,1747643464874,-330.11564374,0.00013917,2]
[361619145,1747643464884,-420.0,0.00013917,2]
[361619146,1747643464894,-441.35,0.00013917,2]
[361619147,1747643464904,-764.33,0.00013917,2]
[361619148,1747643464914,-420.0,0.00013917,2]
[361619149,1747643464923,-564.39,0.00013917,2]
[361619150,1747643464933,-420.0,0.00013917,2]
[361619151,1747643464943,-778.66,0.00013917,2]
[361619152,1747643464952,-420.0,0.00013917,2]
[361619153,1747643464962,-420.0,0.00013917,2]
[361619154,1747643464971,-420.0,0.00013917,2]
[361619155,1747643464981,-420.0,0.00013917,2]
[361619156,1747643464990,-536.04,0.00013917,2]
[361619157,1747643464999,-454.74,0.00013917,2]
[361619158,1747643465009,-896.22,0.00013917,2]
[361619159,1747643465018,-1064.6,0.00013917,2]
[361619160,1747643465027,-420.0,0.00013917,2]